Cogmind - Beta 13 @@@ ROGUE MODE // 2024.05.12 @ 20:08:47 Player: Sunvar Result: Destroyed by D-53 Grenadier with Mini Grenade Launcher Performance ------------- Evolutions (0) 0 Regions Visited (4) 800 Robots Destroyed (20) 100 Value Destroyed (405) 405 Prototype IDs (23) 460 Alien Tech Used (0) 0 Bonus (335) 335 TOTAL SCORE: 2100 Bonus ------- Follower Combat Kills 35 Aligned with FarCom 300 Cogmind --------- Core Integrity 0/250 Matter 196/300 Energy 250/250 System Corruption 0% Temperature Cool (0) Movement Core (450) Ox8 Location -9/Mines Parts ------- > --- POWER (1) -------- Ion Engine > --- PROPULSION (2) --- Light Treads > --- UTILITY (2) ------ Large Storage Unit > --- WEAPON (2) ------- Assault Rifle > --- INVENTORY (15) --- Ion Engine Ion Engine Light Ion Engine Improved Heat Sink Medium Storage Unit Experimental Sensor Array Signal Interpreter Modified TNC Propulsion Shielding Authchip [R/Combat] Assault Rifle Light Assault Rifle Light Assault Rifle Bore Cannon Peak State ------------ > --- POWER ------------ Ion Engine > --- PROPULSION ------- Light Treads Light Treads > --- UTILITY ---------- Large Storage Unit Seismic Detector > --- WEAPON ----------- Assault Rifle Bore Cannon > --- INVENTORY -------- Ion Engine Ion Engine Light Ion Engine Compact Wheel Improved Heat Sink Medium Storage Unit Experimental Sensor Array Authchip [R/Combat] Skeleton Box Assault Rifle Light Assault Rifle Light Assault Rifle Grenade Launcher [Rating: 14] Favorites ----------- Power Ion Engine Engine Ion Engine Propulsion Light Treads Treads Light Treads Wheel Compact Wheel Utility Seismic Detector Device Seismic Detector Storage Large Storage Unit Processor Targeting Computer Weapon Assault Rifle Ballistic Gun Assault Rifle Ballistic Cannon Bore Cannon Launcher Grenade Launcher Build | -11 -10 -10 -10 -9 ------- Run | Yrd Mat Min Exi Min Slots Evolved . | . . . . . Power . | . . . . . Propulsion . | . . . . . Utility . | . . . . . Weapon . | . . . . . Parts Attached 30 | 7 18 3 . 2 Power 4 | 1 3 . . . Engine 4 | 1 3 . . . Core . | . . . . . Reactor . | . . . . . Propulsion 9 | 2 5 1 . 1 Treads 8 | 2 5 1 . . Leg . | . . . . . Wheel 1 | . . . . 1 Hover . | . . . . . Flight . | . . . . . Utility 7 | 2 4 1 . . Device 4 | 1 2 1 . . Storage 2 | 1 1 . . . Processor 1 | . 1 . . . Hackware . | . . . . . Protection . | . . . . . Artifact . | . . . . . Weapon 10 | 2 6 1 . 1 Energy Gun . | . . . . . Energy Cannon . | . . . . . Ballistic Gun 8 | 2 6 . . . Ballistic Cannon 1 | . . 1 . . Launcher 1 | . . . . 1 Special Weapon . | . . . . . Impact Weapon . | . . . . . Slashing Weapon . | . . . . . Piercing Weapon . | . . . . . Special Melee Weapon . | . . . . . Unidentified Prototypes . | . . . . . Parts Lost 9 | . 4 1 . 4 Power 1 | . 1 . . . Propulsion 5 | . 2 1 . 2 Utility 1 | . . . . 1 Weapon 2 | . 1 . . 1 Highest Loss Streak 4 | . 3 1 . 4 To Critical Strikes . | . . . . . Average Slot Usage (%) 99 | . 98 99 100 93 Engine 13 | . 13 14 14 14 Treads 27 | . 27 27 28 24 Device 12 | . 11 14 14 10 Storage 14 | . 14 14 14 14 Ballistic Gun 23 | . 27 22 14 14 Ballistic Cannon 4 | . . 5 14 . Naked Turns . | . . . . . Heaviest Build 37 | 13 30 37 37 31 Greatest Support 40 | 40 40 40 40 40 Greatest Overweight (x) 8 | . 1 . . 8 Average Overweight (x) . | . . . . . Largest Inventory Capacity 15 | 8 15 15 15 15 Average Capacity 13 | 7 12 15 15 15 Most Carried 15 | 7 15 15 15 15 Average Carried 12 | 4 10 14 14 14 Final Capacity 15 | 8 15 15 15 15 Final Carried 15 | 6 15 15 15 14 Class Distribution -------------------- 100% | Mutant Dominant Class ---------------- Mutant | -10/Materials Mutant | -10/Mines Mutant | -10/Exiles Mutant | -9/Mines Resources | -11 -10 -10 -10 -9 ----------- Run | Yrd Mat Min Exi Min Matter Collected 653 | 254 329 70 . . Remotely . | . . . . . Salvage Created 653 | 13 478 94 . 68 Parts 36 | 2 27 5 . 2 Haulers Intercepted 2 | . 2 . . . Recyclers Shooed . | . . . . . Parts Field Recycled . | . . . . . Retrieved Matter . | . . . . . Parts Self-Destructed . | . . . . . Prevented . | . . . . . Kills | -11 -10 -10 -10 -9 ------- Run | Yrd Mat Min Exi Min Combat Hostiles Destroyed 28 | . 12 2 . 14 Guns 15 | . 12 2 . 1 AOE 13 | . . . . 13 Classes Destroyed 6 | 1 4 . . 1 Tunneler 1 | 1 . . . . Hauler 2 | . 2 . . . Watcher 1 | . 1 . . . Swarmer 8 | . 6 . . 2 Grunt 8 | . 6 2 . . Assembled 12 | . . . . 12 Best Kill Streak 12 | 1 3 2 . 12 Combat Bots Only 12 | . 3 2 . 12 Max Kills in Single Turn 3 | 1 1 1 . 3 Gunslinging . | . . . . . Exploded 3 | . . . . 3 Melee . | . . . . . Uniques/NPCs Destroyed . | . . . . . Combat | -11 -10 -10 -10 -9 -------- Run | Yrd Mat Min Exi Min Hostile Shots Fired 141 | . 88 5 . 48 Missed 31 | . 19 . . 12 Damage Taken 1504 | . 703 85 . 716 Core 296 | . 122 34 . 140 Absorbed by Shields . | . . . . . Core Remaining (%) 100 | 100 . . . . Volleys Fired 93 | 4 77 4 . 8 Largest 2 | 2 2 2 . 2 Hottest 50 | 40 40 40 . 50 Shots Fired 186 | 8 154 8 . 16 Gun 178 | 8 154 8 . 8 Cannon . | . . . . . Launcher 8 | . . . . 8 Special . | . . . . . Kinetic 178 | 8 154 8 . 8 Thermal . | . . . . . Explosive 8 | . . . . 8 Electromagnetic . | . . . . . Robot Hit Streak 13 | 2 13 6 . 3 Robot Miss Streak 3 | 1 3 1 . 1 Penetration Max . | . . . . . Secondary Targets 1 | . 1 . . . Max Gunslinging Chain 1 | . 1 . . . Shots Hit Robots 114 | 5 98 7 . 4 Core Hits 67 | 2 35 5 . 25 Critical Kills . | . . . . . Critical Parts Destroyed . | . . . . . Critical Strikes . | . . . . . Melee Attacks . | . . . . . Impact . | . . . . . Slashing . | . . . . . Piercing . | . . . . . Sneak Attacks . | . . . . . Combat Hostiles . | . . . . . Follow-up Attacks . | . . . . . Damage Inflicted 1627 | 42 792 92 . 701 Guns 994 | 42 792 92 . 68 Cannons . | . . . . . Explosions 633 | . . . . 633 Melee . | . . . . . Ramming . | . . . . . Kinetic 994 | 42 792 92 . 68 Thermal . | . . . . . Explosive 633 | . . . . 633 Electromagnetic . | . . . . . Impact . | . . . . . Slashing . | . . . . . Piercing . | . . . . . Highest Corruption . | . . . . . Average Corruption . | . . . . . Corruption Purged . | . . . . . Corruption Blocked . | . . . . . Overload Shots . | . . . . . Overflow Damage 12 | . . . . 12 Projectiles . | . . . . . Explosions 12 | . . . . 12 Melee . | . . . . . Knockbacks . | . . . . . Impact . | . . . . . Kinetic . | . . . . . Secondary . | . . . . . Self-Inflicted Damage 69 | . . . . 69 Shots 2 | . . . . 2 Rammed . | . . . . . Targets Rammed . | . . . . . Kicked . | . . . . . Crushed . | . . . . . Highest Temperature 25 | . 25 2 . . Average Temperature 8 | . 8 2 . . Received Heat Transfer 291 | . 246 45 . . Siege Activations . | . . . . . Robots Corrupted . | . . . . . Combat Hostiles . | . . . . . Parts Fried . | . . . . . Impact Corruptions . | . . . . . Robots Melted . | . . . . . Combat Hostiles . | . . . . . Parts Melted . | . . . . . Heat Transferred . | . . . . . Parts Sabotaged . | . . . . . Parts Stolen . | . . . . . Parts Stripped . | . . . . . Power Chain Reactions . | . . . . . Alert | -11 -10 -10 -10 -9 ------- Run | Yrd Mat Min Exi Min Peak Influence 160 | 5 160 61 . 97 Initial 21 | . 3 21 . . Average 35 | 2 51 20 . 76 Maximum Alert Level . | . . . . . Low Security (%) 100 | 100 100 100 . 100 Level 1 . | . . . . . Level 2 . | . . . . . Level 3 . | . . . . . Level 4 . | . . . . . Level 5 . | . . . . . High Security . | . . . . . Max Security . | . . . . . Squads Dispatched 2 | . 2 . . . Investigation . | . . . . . Extermination . | . . . . . Reinforcement 2 | . 2 . . . Assault . | . . . . . Garrison . | . . . . . Intercept . | . . . . . Searches Triggered . | . . . . . Construction Impeded . | . . . . . Haulers Reinforced . | . . . . . Active Scanning Responses . | . . . . . Cargo Convoy Interrupts . | . . . . . Stealth | -11 -10 -10 -10 -9 --------- Run | Yrd Mat Min Exi Min Distress Signals . | . . . . . Communications Jammed . | . . . . . Distress Signals . | . . . . . Times Spotted 43 | . 22 2 . 19 Peak Tracking Total 13 | . 4 2 . 13 Tactical Retreats . | . . . . . Traps | -11 -10 -10 -10 -9 ------- Run | Yrd Mat Min Exi Min Traps Triggered 3 | . 3 . . . Indirectly . | . . . . . Trap Hack Attempts . | . . . . . Triggered . | . . . . . Disarmed . | . . . . . Reprogrammed . | . . . . . Reused . | . . . . . Traps Extracted . | . . . . . Installed . | . . . . . Triggered . | . . . . . Machines | -11 -10 -10 -10 -9 ---------- Run | Yrd Mat Min Exi Min Machines Disabled . | . . . . . Max in Single Turn . | . . . . . Machines Repaired . | . . . . . Machines Dismantled . | . . . . . Machines Sabotaged . | . . . . . Overloaded Fab Kills . | . . . . . Hacking | -11 -10 -10 -10 -9 --------- Run | Yrd Mat Min Exi Min Machines Accessed 10 | . 8 . 2 . Terminals 6 | . 6 . . . Fabricators . | . . . . . Repair Stations 1 | . 1 . . . Recycling Units 1 | . 1 . . . Scanalyzers . | . . . . . Garrison Access . | . . . . . Total Hacks 44 | . 20 . 24 . Successful 33 | . 9 . 24 . Failed 11 | . 11 . . . Catastrophic 1 | . 1 . . . Database Lockouts . | . . . . . Manual 7 | . 6 . 1 . Terminals 15 | . 15 . . . Fabricators . | . . . . . Repair Stations 1 | . 1 . . . Recycling Units 4 | . 4 . . . Scanalyzers . | . . . . . Garrison Access . | . . . . . Terminal Hacks 31 | . 7 . 24 . Record 23 | . . . 23 . Branch Access Points 1 | . 1 . . . Emergency Access Points 1 | . 1 . . . Unreport Threat 1 | . 1 . . . Locate Traps 2 | . 2 . . . Transport Status 1 | . 1 . . . Hauler Manifests 1 | . 1 . . . Derelict Proto ID Bank 1 | . . . 1 . Fabricator Hacks . | . . . . . Repair Station Hacks . | . . . . . Recycling Unit Hacks 2 | . 2 . . . Report Inventory 1 | . 1 . . . Retrieve Components 1 | . 1 . . . Scanalyzer . | . . . . . Garrison Access Hacks . | . . . . . Unauthorized Hacks . | . . . . . Terminals . | . . . . . Fabricators . | . . . . . Repair Stations . | . . . . . Recycling Units . | . . . . . Scanalyzers . | . . . . . Garrison Access . | . . . . . Data Cores Recovered . | . . . . . Used . | . . . . . Hacking Detections 7 | . 7 . . . Full Trace Events 1 | . 1 . . . Feedback Events . | . . . . . Feedback Blocked . | . . . . . Robot Schematics Acquired . | . . . . . Robots Built . | . . . . . Authchips . | . . . . . Time . | . . . . . Total Robot Build Rating . | . . . . . Part Schematics Acquired . | . . . . . Parts Built . | . . . . . Authchips . | . . . . . Time . | . . . . . Total Part Build Rating . | . . . . . Parts Repaired . | . . . . . Time . | . . . . . Parts Recycled . | . . . . . Recycled Matter . | . . . . . Retrieved Matter . | . . . . . Retrieved Components 2 | . 2 . . . Parts Scanalyzed . | . . . . . Part Schematics Acquired . | . . . . . Parts Damaged . | . . . . . Bothacking | -11 -10 -10 -10 -9 ------------ Run | Yrd Mat Min Exi Min Used RIF Installer . | . . . . . Robots Hacked . | . . . . . Non-combat . | . . . . . Combat . | . . . . . Robot Hacks Applied . | . . . . . Relay Couplers Released . | . . . . . Fabnet Peak Effective % . | . . . . . Robots Rewired . | . . . . . Allies Hacked . | . . . . . Hacks Repelled . | . . . . . Allies | -11 -10 -10 -10 -9 -------- Run | Yrd Mat Min Exi Min Total Allies 1 | . . 1 . . Largest Group 1 | . . 1 1 . Highest-Rated Group 31 | . . 31 31 . Highest-Rated Ally 31 | . . 31 31 . Total Orders . | . . . . . Ally Attacks 1 | . . 1 . . Total Damage 20 | . . 20 . . Kills 1 | . . 1 . . Allies Corrupted . | . . . . . Allies Melted . | . . . . . Intel | -11 -10 -10 -10 -9 ------- Run | Yrd Mat Min Exi Min Robot Analysis Total . | . . . . . Derelict Logs Recovered 2 | . . 1 . 1 Drone Launches . | . . . . . Drone Recoveries . | . . . . . Exploration | -11 -10 -10 -10 -9 ------------- Run | Yrd Mat Min Exi Min Turns Passed 2983 | 142 1152 1203 358 128 Spaces Moved 1573 | 75 521 687 221 69 Core 5 | 4 . . . 1 Treads 1546 | 71 521 687 221 46 Legs . | . . . . . Wheels 22 | . . . . 22 Hover . | . . . . . Flight . | . . . . . Fastest Speed 50 | 50 160 160 160 115 Average Speed 159 | 154 160 160 160 149 Slowest Speed 450 | 160 240 160 160 450 Overloaded Moves . | . . . . . Propulsion Burnouts . | . . . . . Robots Hopped . | . . . . . Cave-ins Triggered . | . . . . . Exploration Rate (%) 54 | 6 91 99 61 16 Regions Visited 4 Branch Regions 3 Pre-discovered Areas 1 | . . . 1 . Known Exits Taken 1 | . 1 . . . Unknown Exits Taken 3 | 1 . 1 1 . Scrap Searched 1 | . . 1 . . Spaces Dug . | . . . . . Terrain Destroyed 55 | . . . . 55 Melee . | . . . . . Projectile . | . . . . . AOE 55 | . . . . 55 Terrain Rammed . | . . . . . Walls Destroyed . | . . . . . Machines Disabled . | . . . . . Actions | -11 -10 -10 -10 -9 --------- Run | Yrd Mat Min Exi Min Total 1894 | 92 712 783 228 79 Wait 150 | . 67 83 . . Move 1569 | 74 520 686 220 69 Hop . | . . . . . Pick Up 36 | 7 21 4 4 . Fast Attach 13 | 6 7 . . . Attach 8 | 1 5 1 . 1 Detach . | . . . . . Swap 9 | . 6 2 . 1 Drop 16 | . 9 3 4 . Fire 93 | 4 77 4 . 8 Melee . | . . . . . Ram . | . . . . . Kick . | . . . . . Crush . | . . . . . Escape Stasis . | . . . . . Rewire . | . . . . . Trap . | . . . . . Miscellaneous . | . . . . . Route ------- -11/Scrapyard -10/Materials (discovered 5 exits: [*Mat x3] / *Min x2) -10/Mines (discovered 3 exits: [*Mat x2] / *Exi) -10/Exiles -9/Mines History --------- Turn | Location | Event 38 | -11/Scrapyard | Discovered new exit (range 16) 143 | -11/Scrapyard | Entered Materials 310 | -10/Materials | Build established: Mutant 591 | -10/Materials | Discovered new exit (range 4) 597 | -10/Materials | Identified exit to Mines 975 | -10/Materials | Discovered new exit (range 15) 984 | -10/Materials | Lost 3 parts (1p1n1w) 1093 | -10/Materials | Discovered new exit (range 11) 1295 | -10/Materials | Entered Mines 1306 | -10/Mines | Core integrity fell below 50% 1311 | -10/Mines | Met a Derelict bent on vengeance 1385 | -10/Mines | Found a damaged Exp. Sensor Array with a note attached 1390 | -10/Mines | Found Prototype Device 1457 | -10/Mines | Learned Materials stockpile data 1874 | -10/Mines | Discovered new exit (range 8) 2018 | -10/Mines | A weapon hastily lodged in a ceiling crevice suddenly fell to the ground 2061 | -10/Mines | Discovered new exit (range 8) 2168 | -10/Mines | Escorted by a lone wolf Derelict 2489 | -10/Mines | Deemed a non-threat by the Exiles lab entrance 2490 | -10/Mines | Discovered new exit (range 5) 2498 | -10/Mines | Entered Exiles 2498 | -10/Exiles | Accompanied by 1 ally 2535 | -10/Exiles | Met 8R-AWN 2564 | -10/Exiles | Met EX-HEX 2614 | -10/Exiles | Met EX-BIN 2634 | -10/Exiles | Aligned with FarCom system 2636 | -10/Exiles | Given EX-Vault access code 2673 | -10/Exiles | Opened EX-Vault 2682 | -10/Exiles | Found Prototype Device 2688 | -10/Exiles | Identified Skeleton Box 2692 | -10/Exiles | Found Modified TNC 2727 | -10/Exiles | Warned to stay clear of 0b10 Research branches 2778 | -10/Exiles | Met EX-DEC 2788 | -10/Exiles | Learned location of Zion (-6) 2837 | -10/Exiles | Discovered new exit (range 14) 2856 | -10/Exiles | Left Exiles lab with Modified TNC 2856 | -10/Exiles | Entered Mines 2888 | -9/Mines | Learned location of 1 exit from Lower Caves 2928 | -9/Mines | Assembled infested the area 2940 | -9/Mines | Core integrity fell below 20% 2974 | -9/Mines | Destroyed 12 combat bots 2984 | -9/Mines | Destroyed by D-53 Grenadier with Mini Grenade Launcher Last Messages --------------- 02942_ as-52946 destroyed. 02942_ as-59200 destroyed. 02942_ as-90690 destroyed. 02945_ as-88104 destroyed. 02950_ as-40828 destroyed. 02953_ as-42228 destroyed. 02953_ Lgt. Treads destroyed. 02953_ Destroyed Lgt. Treads. 02953_ Destroyed Asb. Hover Unit. 02953_ as-71271 destroyed. 02954_ Seismic Detector destroyed. 02957_ C-30 ARC bursts open, deploying its payload. 02957_ D-53 Grenadier unfolds itself. 02957_ Grenade Launcher destroyed. 02959_ The unstable cave ceiling collapses. 02967_ as-79626 destroyed. 02967_ as-11238 destroyed. 02969_ The unstable cave ceiling collapses. 02973_ T-07 Excavator is excavating. 02982_ Com. Wheel destroyed. Map ----- +----------------------------------------------------+ | ????????????????????#### ####????????????????????? | | ?????????????##????? # #????????????????????? | | ?????????##### ##### # #??##????????????????? | | ????????## ## ????????????????? | | ???????## % # ????????????????? | | ????#### [ % #????????????????? | | ????#" #????????????????????? | | ????#%" # #????????????????????? | | ????#"### #????????????????????? | | ????# #?###### # #?????????????????? | | ????# #??????###### # ?????????????????? | | ????# #???????????## ??? ?????????????????? | | ????# #?????????????# #????? ### ????????????????? | | ????# #?????????????# #??????????????????????????? | | ?#### #?????????????# #??????????????????????????? | | ?# #?????????????# #??????????????????????????? | | ?# ####?????????????# #??????????????????????????? | | ?# #????????????????# #????????#?????????????????? | | ## #????????????????# #######? #?????????????????? | | #????????????????# d ## ## #??????????????? | | #????????????????######d #??????????????? | | ####???????????????????### ######??????????????? | | ???????????????????????# #???????????????????? | | ???????????????????????# #???????????????????? | | ??????????????????????### #???????????????????? | | ??????????????????????# @ #???????????????????? | | ?????????????????????# #???????????????????? | | ????????????????????# ##???????????????????? | | ??????????????????? #???????????????????? | | ????????????????? ??????????????????? | | ??????????????? ?????????????????? | | ????????????? ????????????????? | | ???????????? r ###### #???????????????? | | ????????????? ### #??????# ##???????????????? | | ????????????????## #????????####????????????????? | | ?????????????????# ?????????????????????????????? | | ????????????????? ??????????????????????????????? | | ????????????????#^ ??????????????????????????????? | | ?????????????????????????????????????????????????? | | ?????????????????????????????????????????????????? | | ?????????????????????????????????????????????????? | | ?????????????????????????????????????????????????? | | ?????????????????????????????????????????????????? | | ?????????????????????????????????????????????????? | | ?????????????????????????????????????????????????? | | ?????????????????????????????????????????????????? | | ?????????????????????????????????????????????????? | | ?????????????????????????????????????????????????? | | ?????????????????????????????????????????????????? | | ?????????????????????????????????????????????????? | +----------------------------------------------------+ Best States ------------- Heat Dissipation 25 Energy Generation 10 Energy Capacity 250 Matter Stores 300 Matter Capacity 300 Sight Range 16 Terrain Scan Density 10 Evasion (%) 40 Targeting Accuracy 5 Recoil Reduction 2 Authchip Count 1 Item Schematics ----------------- None Robot Schematics ------------------ None Fabricated ------------ Nothing Alien Tech Used ----------------- None Achievements -------------- None Challenges ------------ None Game ------ Seed SpliceIntegratedDoomcannon Manual? 0 Play Time 00:34:39 Cumulative 68.4 hours Start 2024.05.12 @ 18:13:06 End 2024.05.12 @ 20:08:47 Sessions 3 Manual Loads 0 Difficulty Rogue Special Mode None Game No. 42 Rogue 42 Adventurer 0 Explorer 0 Win Type - Total 1 Types 1/0/0/0/0/0/0/0/0 Lore% 33 Gallery% 46 Achievement% 33 Wizard Run 0 Options --------- Layout 0 ASCII 1 Keyboard 1 Movement Numpad Keybinds 0 Fullscreen 1 Font 24/Proggy Map View 76x56 Zoom Use 0% Tactical HUD 1 Map Filters NONE Filters NONE Steam 1 RUN: d7a6b8c1-8d65-4016-94b3-39d78ada703e